bitfinex-derivatives/quotes_SOLF0:USTF0_20250127
["timestamp","ask_amount","ask_price","bid_price","bid_amount"]
[1737973039922,0.03014608,224.77,224.65,1.4669]
[1737973040321,0.03014608,224.77,224.66,0.16689]
[1737973041021,0.03014608,224.77,224.72,4.4518]
[1737973041419,0.03014608,224.77,224.66,0.16689]
[1737973041620,0.03014608,224.77,224.74,4.4515]
[1737973041919,0.03014608,224.77,224.66,0.16689]
[1737973042119,4.608e-05,224.77,224.68,23.05226387]
[1737973042315,4.608e-05,224.77,224.76,4.4511]
[1737973044123,4.608e-05,224.77,224.76,5.8924]
[1737973045124,4.608e-05,224.77,224.76,4.4511]
[1737973045324,4.608e-05,224.77,224.74,4.48149999]
[1737973045818,4.608e-05,224.77,224.74,0.03009999]
[1737973046024,4.608e-05,224.77,224.76,4.4511]
[1737973046521,4.608e-05,224.77,224.74,0.03009999]
[1737973047120,4.608e-05,224.77,224.74,4.48159999]
[1737973047321,4.608e-05,224.77,224.74,0.03009999]
[1737973048226,4.608e-05,224.77,224.73,4.4517]
[1737973048929,4.608e-05,224.77,224.67,2.8052]
[1737973050030,4.608e-05,224.77,224.76,4.4511]
[1737973050925,4.608e-05,224.77,224.73,4.4516]
[1737973051128,4.608e-05,224.77,224.67,2.8052]
[1737973051824,4.608e-05,224.77,224.73,4.4517]
[1737973055026,4.608e-05,224.77,224.7,4.4523]
[1737973055027,4.4511,224.76,224.7,4.4523]
[1737973055222,4.608e-05,224.77,224.67,2.8052]
[1737973055527,4.608e-05,224.77,224.66,0.16689]
[1737973055727,4.4511,224.76,224.7,4.4523]
[1737973056131,4.4518,224.73,224.68,4.4527]
[1737973056427,4.608e-05,224.77,224.66,0.16689]
[1737973056723,23.05226387,224.81,224.66,0.16689]
[1737973056930,0.03228453,224.74,224.66,0.16689]
[1737973057721,0.03228453,224.74,224.69,4.4525]
[1737973058022,0.03228453,224.74,224.66,0.16689]
[1737973059527,4.48378453,224.74,224.68,4.4525]
[1737973059927,0.03228453,224.74,224.66,0.16689]
[1737973060225,4.4519,224.73,224.66,4.61979]
[1737973060431,0.03228453,224.74,224.66,0.16689]
[1737973061134,4.4525,224.69,224.66,0.16689]
[1737973061329,23.05226387,224.73,224.66,0.16689]
[1737973062029,4.4529,224.68,224.66,0.16689]
[1737973062227,24.49436387,224.73,224.66,0.16689]
[1737973062433,23.08604109,224.69,224.58,4.4546]
[1737973062631,23.05226387,224.69,224.58,4.4546]
[1737973062834,0.03270149,224.66,224.49,4.1889]
[1737973063029,4.453,224.67,224.6,4.4542]
[1737973063429,0.03245039,224.66,224.6,4.4542]
[1737973063925,0.03245039,224.66,224.64,4.4534]
[1737973064125,4.189,224.73,224.52,23.05226387]
[1737973064327,0.0305143,224.67,224.49,4.1889]
[1737973064525,23.05226387,224.7,224.49,4.1889]
[1737973064732,0.0290451,224.6,224.49,4.1889]
[1737973065233,0.0290451,224.6,224.57,4.4549]
[1737973065929,0.0290451,224.6,224.49,4.1889]
[1737973066125,0.0290451,224.6,224.59,4.4545]
[1737973067337,2.7696,224.73,224.67,4.4528]
[1737973067525,2.7696,224.73,224.52,23.05226387]
[1737973067729,4.4521,224.71,224.67,4.4529]
[1737973067931,2.7696,224.73,224.52,23.05226387]
[1737973068234,4.4521,224.71,224.65,4.4532]
[1737973068531,23.05226387,224.76,224.6,0.02956946]
[1737973068736,4.4529,224.67,224.56,4.455]
[1737973068938,23.05226387,224.68,224.6,0.02956946]
[1737973069331,0.0305829,224.66,224.61,4.4541]
[1737973069531,0.0305829,224.66,224.6,0.02956946]
[1737973070237,0.0305829,224.66,224.65,4.4533]
[1737973070735,0.0305829,224.66,224.61,1.3939]
[1737973071838,0.0305829,224.66,224.64,4.4535]
[1737973072036,0.0305829,224.66,224.61,1.3939]
[1737973072232,0.0305829,224.66,224.61,2.8061]
[1737973072431,0.0305829,224.66,224.65,4.4533]
[1737973072642,4.4512,224.76,224.62,1.4397]
[1737973072830,23.05226387,224.81,224.62,1.4397]
[1737973073231,4.4507,224.78,224.62,1.4397]
[1737973073437,23.05226387,224.77,224.64,4.4533]
[1737973073637,1.4441,224.86,224.61,2.8061]
[1737973073638,23.05226387,224.72,224.61,2.8061]
[1737973073835,23.05226387,224.72,224.68,4.661e-05]
[1737973074036,23.05226387,224.72,224.61,1.3939]
[1737973074433,4.4535,224.65,224.57,1.4221]
[1737973074638,23.05226387,224.72,224.59,4.4544]
[1737973074932,4.4527,224.69,224.59,4.4544]
[1737973075136,0.029394,224.68,224.63,0.02950575]
[1737973076142,4.4532,224.66,224.63,0.02950575]
[1737973076444,0.029394,224.68,224.63,0.02950575]
[1737973077041,0.029394,224.68,224.59,4.4544]
[1737973078241,4.4533,224.66,224.59,4.4544]
[1737973078639,23.08165787,224.68,224.57,1.4221]
[1737973078843,4.4535,224.65,224.57,1.4221]
[1737973079243,0.03030112,224.63,224.57,1.4221]
[1737973079649,0.03030112,224.63,224.58,1.4297]
[1737973079839,0.03030112,224.63,224.62,4.4539]
[1737973081151,0.03030112,224.63,224.58,1.4297]
[1737973081449,0.03030112,224.63,224.57,1.4221]
[1737973082143,0.03030112,224.63,224.61,4.454]
[1737973082344,1.4441,224.75,224.57,1.4221]
[1737973082650,1.4441,224.75,224.58,1.3585]
[1737973082849,24.42976387,224.8,224.6,23.05226387]
[1737973083150,24.42976387,224.8,224.61,3.04]
[1737973083548,0.02959778,224.73,224.68,0.03030112]
[1737973083755,4.4525,224.69,224.68,0.03030112]
[1737973084251,0.02959778,224.73,224.68,0.03030112]
[1737973085046,0.02959778,224.73,224.72,4.4519]
[1737973085250,0.02959778,224.73,224.68,0.03030112]
[1737973085548,0.02959778,224.73,224.72,4.4519]
[1737973085755,2.8456,224.87,224.69,1.4536]
[1737973085950,2.8456,224.87,224.7,1.3406]
[1737973086257,1.3476,224.9,224.72,23.05226387]
[1737973086654,23.05226387,224.92,224.72,23.05226387]
[1737973087049,0.03293682,224.83,224.79,0.03390928]
[1737973087548,0.03371486,224.83,224.79,0.03390928]
[1737973089749,4.4502,224.81,224.79,9.28e-06]
[1737973090056,23.05226387,224.8,224.68,3.04]
[1737973090252,4.4524,224.7,224.65,1.4608]
[1737973090552,23.05226387,224.76,224.57,4.3715]
[1737973090748,23.05226387,224.76,224.58,1.4608]
[1737973090949,23.05226387,224.76,224.58,2.8721]
[1737973091150,0.0305343,224.69,224.65,0.02598962]
[1737973091552,0.0305343,224.69,224.65,4.47928962]
[1737973091852,0.0305343,224.69,224.65,0.02598962]
[1737973096262,0.0305343,224.69,224.65,4.47918962]
[1737973096464,0.0305343,224.69,224.65,0.02598962]
[1737973096663,24.49956387,224.8,224.65,0.02598962]
[1737973096861,4.4509,224.77,224.61,23.05226387]
[1737973097362,4.4511,224.76,224.69,4.4524]
[1737973097657,24.49956387,224.8,224.61,23.05226387]
[1737973097862,24.49956387,224.8,224.7,0.03042852]
[1737973097863,0.03022602,224.75,224.7,0.03042852]
[1737973098561,23.05226387,224.88,224.7,0.03042852]
[1737973098767,23.05226387,224.88,224.65,23.05226387]
[1737973099467,23.05226387,224.84,224.64,3.04]
[1737973099664,4.4501,224.82,224.75,4.4513]
[1737973099867,0.0295667,224.76,224.75,4.4513]
[1737973100060,23.05226387,224.84,224.75,4.4513]
[1737973100257,0.03171914,224.78,224.76,4.4511]
[1737973100461,23.05226387,224.88,224.77,0.03019548]
[1737973101364,4.4494,224.85,224.7,1.435]
[1737973101561,23.05226387,224.88,224.7,1.435]
[1737973101766,23.05226387,224.96,224.73,23.05226387]
[1737973101966,23.05226387,224.96,224.7,1.435]
[1737973101967,23.05226387,224.96,224.77,23.05226387]
[1737973102265,4.4476,224.94,224.88,4.4487]
[1737973102656,0.0342635,224.93,224.89,4.47715658]
[1737973102860,0.0342635,224.93,224.89,0.02875658]
[1737973103064,23.05226387,225.0,224.78,3.04]
[1737973103265,0.03152962,224.93,224.89,0.03117088]
[1737973103465,6.15447832,225.07,224.89,0.03117088]
[1737973103663,6.15447832,225.07,224.99,4.4465]
[1737973104062,6.15447832,225.07,224.9,3.04]
[1737973104266,4.4455,225.05,224.96,4.4471]
[1737973104563,6.15447832,225.07,224.9,3.04]
[1737973104868,0.02994979,225.03,224.98,0.02882549]
[1737973106071,4.4464,225.0,224.98,0.02882549]
[1737973106565,23.05226387,225.01,224.87,2.7032]
[1737973107268,23.05226387,225.01,224.92,4.4479]
[1737973107467,23.05226387,225.01,224.87,2.7032]
[1737973107671,0.031471,224.96,224.92,0.03387488]
[1737973109874,0.031471,224.96,224.94,4.4475]
[1737973111172,23.05226387,225.09,224.99,4.4464]
[1737973111373,23.05226387,225.09,224.92,0.03387488]
[1737973111374,59.05226387,225.17,224.93,27.53186387]
[1737973111674,23.05226387,225.21,225.07,4.445]
[1737973111972,23.05226387,225.21,225.01,23.05226387]
[1737973112174,23.05226387,225.21,224.97,23.05226387]
[1737973112373,0.03052724,225.13,225.09,0.03324613]
[1737973112876,0.03052724,225.13,225.11,4.4441]
[1737973113573,0.03052724,225.13,225.09,0.03324613]
[1737973118373,4.4443,225.11,225.09,0.03324613]
[1737973118976,0.03052724,225.13,225.09,0.03324613]
[1737973120372,23.08279111,225.13,224.96,1.4389]
[1737973120579,4.4458,225.03,224.97,4.4468]
[1737973120770,23.05226387,225.07,224.96,1.4389]
[1737973120974,23.05226387,225.11,224.96,1.4389]
[1737973121169,4.4443,225.11,224.96,1.4389]
[1737973121481,1.3502,225.12,224.96,1.4389]
[1737973121672,0.02957011,225.06,225.01,0.03321914]
[1737973123782,4.47487011,225.06,225.01,0.03321914]
[1737973123980,0.02957011,225.06,225.01,0.03321914]
[1737973124382,0.02957011,225.06,225.03,4.4456]
[1737973124580,0.02957011,225.06,225.01,0.03321914]
[1737973125376,23.05226387,225.23,225.01,23.08548301]
[1737973125573,24.38946387,225.23,225.02,2.6598]
[1737973125779,4.4425,225.2,225.03,3.04]
[1737973125978,24.38946387,225.23,225.03,3.04]
[1737973126377,4.4427,225.19,225.13,4.4438]
[1737973126571,0.02834895,225.15,225.1,0.02953531]
[1737973127480,4.444,225.13,225.1,0.02953531]
[1737973127684,0.02834895,225.15,225.02,2.6598]
[1737973127980,23.05226387,225.19,225.02,2.6598]
[1737973128477,23.05226387,225.15,225.02,1.3359]
[1737973128980,4.445,225.07,225.06,0.03078979]
[1737973129173,0.03155382,225.11,225.06,0.03078979]
[1737973129674,4.445,225.07,225.06,0.03078979]
[1737973132080,1.4519,225.1,224.96,1.4389]
[1737973132276,1.4519,225.1,224.93,5.9077]
[1737973132277,23.05226387,225.07,224.93,5.9077]
[1737973132480,23.05226387,225.03,224.89,2.8174]
[1737973132683,23.05226387,225.03,224.89,1.4056]
[1737973132883,4.4474,224.95,224.89,1.4056]
[1737973133086,23.05226387,225.07,224.89,1.4056]
[1737973133277,4.4459,225.03,224.9,1.39888238]
[1737973133580,23.05226387,225.07,224.93,4.4476]
[1737973133785,0.03084822,224.99,224.93,4.4476]
[1737973134079,0.03084822,224.99,224.94,0.0333246]
[1737973134286,23.08311209,224.99,224.94,0.0333246]
[1737973134783,4.4474,224.95,224.94,0.0333246]
[1737973135478,23.08311209,224.99,224.83,1.4457]
[1737973135682,1.4492,224.98,224.83,1.4457]
[1737973135876,23.05226387,224.95,224.83,5.8954]
[1737973136082,4.4484,224.9,224.83,1.4457]
[1737973136381,23.05226387,224.95,224.76,23.05226387]
[1737973136382,23.05226387,224.95,224.77,5.9127]
[1737973136579,23.05226387,224.95,224.77,1.4619]
[1737973136886,0.02838108,224.88,224.84,0.02462334]
[1737973140284,0.02838108,224.88,224.87,4.4489]
[1737973141084,0.02838108,224.88,224.85,4.4492]
[1737973141289,0.02838108,224.88,224.84,0.02462334]
[1737973141989,0.02838108,224.88,224.87,4.4489]
[1737973142290,0.02838108,224.88,224.86,4.4491]
[1737973142589,0.02838108,224.88,224.84,0.02462334]
[1737973143085,4.4492,224.86,224.84,0.02462334]
[1737973143283,0.02838108,224.88,224.72,23.05226387]
[1737973143483,0.02838108,224.88,224.65,36.3791368]
[1737973143484,23.08064495,224.88,224.69,3.04]
[1737973143690,4.4501,224.82,224.69,3.04]
[1737973143885,1.4312,224.87,224.69,3.04]
[1737973144490,1.4312,224.87,224.77,4.4508]
[1737973144693,0.02965649,224.82,224.77,4.4508]
[1737973145195,0.02965649,224.82,224.79,4.4504]
[1737973145390,0.02965649,224.82,224.69,3.04]
[1737973145391,0.02965649,224.82,224.77,23.05226387]
[1737973145599,2.7357,224.95,224.77,23.05226387]
[1737973146297,2.7357,224.95,224.73,25.83786387]
[1737973146497,23.05226387,224.92,224.73,25.83786387]
[1737973146699,2.7357,224.95,224.73,25.83786387]
[1737973146901,0.03280296,224.85,224.8,0.02965649]
[1737973147493,0.03280296,224.85,224.81,4.4501]
[1737973147699,0.03280296,224.85,224.8,0.02965649]
[1737973149499,4.4499,224.82,224.8,0.02965649]
[1737973150301,0.03280296,224.85,224.8,0.02965649]
[1737973150795,0.03280296,224.85,224.84,4.4495]
[1737973151295,1.412,225.02,224.81,23.05226387]
[1737973151497,1.412,225.02,224.87,23.05226387]
[1737973151700,1.412,225.02,224.88,1.3474]
[1737973151901,4.4466,224.99,224.93,4.4477]
[1737973152097,1.412,225.02,224.88,2.6928]
[1737973152304,0.03168441,224.98,224.94,0.0312662]
[1737973153604,4.4472,224.96,224.94,0.0312662]
[1737973154803,0.03168441,224.98,224.85,4.4492]
[1737973155306,1.3895,224.98,224.83,4.4496]
[1737973156007,0.02973953,224.93,224.83,4.4496]
[1737973156306,0.02973953,224.93,224.81,1.4164]
[1737973156906,4.47753953,224.93,224.81,1.4164]
[1737973157706,4.4481,224.92,224.85,4.4493]
[1737973158004,0.02973953,224.93,224.81,1.4164]
[1737973158214,0.02973953,224.93,224.83,23.05226387]
[1737973158399,0.02973953,224.93,224.92,4.448]
[1737973158701,0.02973953,224.93,224.83,23.05226387]
[1737973159907,23.05226387,225.08,224.88,23.05226387]
[1737973160102,1.3935,225.07,224.88,23.05226387]
[1737973161206,36.0,225.11,224.95,0.02847235]
[1737973161207,0.02827138,225.0,224.95,0.02847235]
[1737973161403,0.02827138,225.0,224.93,2.7326]
[1737973161610,2.7673,225.15,224.96,23.05226387]
[1737973161908,2.7673,225.15,225.0,23.05226387]
[1737973162108,1.3935,225.2,225.0,23.05226387]
[1737973162509,4.4433,225.16,225.06,4.4452]
[1737973162706,1.3935,225.2,225.0,23.05226387]
[1737973163008,0.03030495,225.13,225.09,0.03286594]
[1737973164310,4.47420495,225.13,225.09,0.03286594]
[1737973164513,0.03030495,225.13,225.09,0.03286594]
[1737973166719,4.444,225.12,225.09,0.03286594]
[1737973167714,0.03030495,225.13,225.09,0.03286594]
[1737973167921,4.4451,225.07,224.94,1.4516]
[1737973168117,23.05226387,225.08,224.94,1.4516]
[1737973168818,4.4464,225.0,224.94,1.4516]
[1737973169018,0.03043353,225.03,224.99,0.03129897]
[1737973169225,0.03043353,225.03,224.8,23.05226387]
[1737973169418,0.03043353,225.03,224.83,4.2677]
[1737973169621,23.05226387,224.96,224.83,4.2677]
[1737973170326,4.4491,224.87,224.77,4.4509]
[1737973170520,23.05226387,224.88,224.73,1.4516]
[1737973170922,0.02840587,224.83,224.73,1.4516]
[1737973171731,4.4506,224.79,224.73,1.4516]
[1737973172429,0.03252569,224.78,224.65,246.65025979]
[1737973172729,0.03252569,224.78,224.65,2.8524]
[1737973172919,4.4518,224.73,224.65,2.8524]
[1737973173321,0.02984717,224.71,224.65,2.8524]
[1737973175033,0.02984717,224.71,224.65,1.4446]
[1737973176026,4.4524,224.7,224.62,1.4323]
[1737973176730,0.02984717,224.71,224.62,1.4323]
[1737973177631,0.02984717,224.71,224.65,4.4532]
[1737973178634,23.05226387,224.84,224.64,23.05226387]
[1737973178828,4.4502,224.81,224.66,0.02984717]
[1737973179029,4.4502,224.81,224.64,23.05226387]
[1737973179232,23.05226387,224.84,224.64,23.05226387]
[1737973179534,4.4508,224.78,224.64,23.05226387]
[1737973179829,0.03302277,224.76,224.72,0.02968924]
[1737973180837,0.03302277,224.76,224.74,4.4515]
[1737973181026,0.03302277,224.76,224.72,0.02968924]
[1737973182234,0.03302277,224.76,224.73,4.4517]
[1737973184030,0.03302277,224.76,224.74,4.4515]
[1737973186236,0.03302277,224.76,224.72,0.02968924]
[1737973186635,23.08528664,224.76,224.72,0.02968924]
[1737973186837,4.4517,224.73,224.72,0.02968924]
[1737973187339,0.03302277,224.76,224.72,0.02968924]
[1737973187536,0.03302277,224.76,224.75,4.4513]
[1737973188233,2.8631,224.91,224.77,4.4508]
[1737973188537,4.4493,224.86,224.72,23.05226387]
[1737973188937,1.4408,224.91,224.72,23.05226387]
[1737973189139,23.05226387,224.92,224.73,1.3573]
[1737973189338,0.03371437,224.84,224.81,4.45]
[1737973189535,0.03371437,224.84,224.79,0.02858484]
[1737973189743,0.03337702,224.84,224.79,0.03018832]
[1737973190136,4.4502,224.81,224.79,0.03018832]
[1737973190339,0.03337702,224.84,224.79,0.03018832]
[1737973190938,4.4503,224.8,224.79,0.03018832]
[1737973194938,4.4518,224.73,224.69,1.3957]
[1737973195140,23.05226387,224.79,224.69,1.3957]
[1737973195638,4.4511,224.76,224.69,1.3957]
[1737973195942,23.05226387,224.79,224.69,1.3957]
[1737973196141,0.03401727,224.75,224.7,0.02863078]
[1737973197638,0.03401727,224.75,224.7,4.48093078]
[1737973197840,0.03401727,224.75,224.7,0.02863078]
[1737973198646,0.03401727,224.75,224.71,4.452]
[1737973198848,0.03401727,224.75,224.7,0.02863078]
[1737973199347,4.4515,224.74,224.7,0.02863078]
[1737973200247,0.03401727,224.75,224.7,0.02863078]
[1737973200650,1.3825,224.85,224.7,0.02863078]
[1737973200949,2.7554,224.94,224.73,23.05226387]
[1737973201146,2.7554,224.94,224.74,1.3414]
[1737973201356,4.4496,224.84,224.74,5.7927]
[1737973201550,23.05226387,224.88,224.74,1.3414]
[1737973202049,0.03100908,224.83,224.79,0.03265239]
[1737973202450,0.03412011,224.83,224.79,0.03260066]
[1737973205556,0.03412011,224.83,224.82,4.4499]
[1737973206049,0.03412011,224.83,224.8,1.448]
[1737973206250,0.03412011,224.83,224.82,4.4499]
[1737973206446,0.03412011,224.83,224.8,1.448]
[1737973206747,0.03412011,224.83,224.79,0.03260066]
[1737973207147,0.03412011,224.83,224.79,4.48310066]
[1737973207347,0.03412011,224.83,224.79,0.03260066]
[1737973207653,4.448,224.92,224.83,4.4496]
[1737973207856,23.05226387,224.97,224.79,0.03260066]
[1737973208057,23.05226387,224.97,224.77,24.50776387]
[1737973208251,23.05226387,224.97,224.82,4.4499]
[1737973208654,23.05226387,224.93,224.77,1.4555]
[1737973208854,4.4488,224.88,224.87,0.03234121]
[1737973209155,0.02854804,224.91,224.87,0.03234121]
[1737973209549,4.47674804,224.91,224.87,0.03234121]
[1737973209750,0.02854804,224.91,224.87,0.03234121]
[1737973210351,4.4486,224.89,224.87,0.03234121]
[1737973210546,0.02854804,224.91,224.87,0.03234121]
[1737973210956,0.02854804,224.91,224.79,4.4505]
[1737973211156,24.46626387,225.0,224.77,1.4555]
[1737973211449,4.4492,224.86,224.8,4.4501]
[1737973211649,24.46626387,225.0,224.77,1.4555]
[1737973212050,4.4492,224.86,224.77,1.4555]
[1737973212257,4.4492,224.86,224.84,0.03402916]
[1737973212459,4.4492,224.86,224.77,1.4555]
[1737973212659,0.02857041,224.87,224.83,0.0317624]
[1737973213055,23.05226387,224.9,224.83,0.0317624]
[1737973213356,4.4495,224.84,224.83,6.24e-05]
[1737973213764,2.781,224.89,224.83,6.24e-05]
[1737973214359,0.02845209,224.88,224.83,6.24e-05]
[1737973214560,4.4495,224.84,224.83,6.24e-05]
[1737973215858,0.02845209,224.88,224.83,6.24e-05]
[1737973216062,1.3341,225.01,224.83,6.24e-05]
[1737973216366,23.05226387,225.03,224.84,23.05226387]
[1737973216657,2.8446,225.05,224.88,23.05226387]
[1737973216852,4.4453,225.06,224.89,1.4266]
[1737973217053,1.3341,225.09,224.92,23.05226387]
[1737973217257,0.03249454,225.0,224.95,0.02972215]
[1737973217662,0.03249454,225.0,224.92,23.05226387]
[1737973218163,0.03249454,225.0,224.95,0.03345051]
[1737973218864,4.447,224.97,224.95,0.03345051]
[1737973219458,0.03249454,225.0,224.95,0.03345051]
[1737973220661,0.03249454,225.0,224.96,4.4471]
[1737973221562,0.03249454,225.0,224.95,0.03345051]
[1737973221758,2.8446,225.13,224.97,23.05226387]
[1737973221967,1.4007,225.13,224.98,1.3314]
[1737973222162,4.4444,225.11,225.03,4.4458]
[1737973222358,1.4235,225.19,224.98,1.3314]
[1737973222562,1.4204,225.18,224.98,1.3314]
[1737973222864,23.05226387,225.16,224.98,1.3314]
[1737973223070,23.05226387,225.07,225.06,9.79e-05]
[1737973223264,4.4471,224.97,224.91,1.3314]
[1737973224065,23.05226387,225.03,224.9,1.3594]
[1737973224268,23.05226387,224.99,224.82,1.3427]
[1737973224465,23.08300743,224.99,224.94,0.02940337]
[1737973224768,23.05226387,224.99,224.83,4.4497]
[1737973225965,0.03390076,224.93,224.89,0.03086317]
[1737973228469,4.4482,224.91,224.89,0.03086317]
[1737973230562,4.4484,224.9,224.89,0.03086317]
[1737973231063,0.03390076,224.93,224.89,0.03086317]
[1737973231771,0.03390076,224.93,224.92,4.448]
[1737973232870,0.03390076,224.93,224.92,4.40477495]
[1737973233077,0.03390076,224.93,224.89,0.03086317]
[1737973234770,4.4482,224.91,224.89,0.03086317]
[1737973234965,0.03390076,224.93,224.89,0.03086317]
[1737973237876,0.03390076,224.93,224.89,6.317e-05]
[1737973238477,1.4235,225.06,224.89,6.317e-05]
[1737973238675,23.05226387,225.12,224.89,6.317e-05]
[1737973238676,1.4605,225.1,224.89,23.05226387]
[1737973238870,4.4447,225.09,225.01,4.4462]
[1737973239069,4.4447,225.09,224.9,4.2792]
[1737973239070,1.4605,225.1,224.9,4.2792]
[1737973239666,0.02963934,225.02,224.98,0.0303361]
[1737973240272,0.02963934,225.02,224.9,4.2792]
[1737973242080,4.4467,224.99,224.9,4.2792]
[1737973242491,0.03352933,224.97,224.9,4.2792]
[1737973243387,1.4605,225.1,224.92,23.05226387]
[1737973244286,1.4594,225.14,224.92,23.05226387]
[1737973244585,0.02899195,225.03,224.99,0.03289608]
[1737973244981,1.4594,225.14,224.92,23.05226387]
[1737973245178,0.03417009,225.03,224.99,0.03368269]
[1737973245388,0.03417009,225.03,225.0,4.4463]
[1737973245584,1.4389,225.15,224.96,23.05226387]
[1737973245785,0.02877321,225.04,224.99,0.03223389]
[1737973246086,4.4442,225.11,225.04,4.4454]
[1737973246786,2.7714,225.2,225.0,23.05226387]
[1737973246987,23.05226387,225.25,225.04,23.05226387]
[1737973247287,2.6964,225.26,225.08,23.08122372]
[1737973247587,2.6964,225.26,225.08,23.05226387]
[1737973247883,4.4425,225.2,225.14,4.4436]
[1737973248089,4.4425,225.2,225.08,23.05226387]
[1737973248294,1.3571,225.27,225.08,23.05226387]
[1737973248486,0.03205857,225.16,225.13,4.4438]
[1737973248688,2.6964,225.34,225.14,1.3952]
[1737973248992,1.3734,225.34,225.14,1.3952]
[1737973249189,4.4414,225.26,225.17,4.443]
[1737973249382,2.6964,225.34,225.14,1.3952]
[1737973249689,2.6964,225.34,225.18,4.4428]
[1737973249889,2.6964,225.34,225.22,0.03354725]
[1737973249890,0.02871613,225.26,225.22,0.03354725]
[1737973250585,0.02871613,225.26,225.22,4.725e-05]
[1737973250789,4.4417,225.24,225.22,4.725e-05]
[1737973253393,4.4415,225.25,225.22,4.725e-05]
[1737973253696,0.02871613,225.26,225.15,4.4433]
[1737973253993,0.02871613,225.26,225.09,1.4064]
[1737973254189,23.05226387,225.29,225.09,1.4064]
[1737973254387,4.4431,225.17,225.09,1.4064]
[1737973254585,23.05226387,225.33,225.09,1.4064]
[1737973254586,23.05226387,225.25,225.09,1.4064]
[1737973254890,0.03365714,225.15,225.11,0.03257944]
[1737973255287,23.05226387,225.21,225.05,2.8422]
[1737973255492,0.03223763,225.15,225.11,0.03161871]
[1737973255691,4.4438,225.13,225.11,0.03161871]
[1737973255987,0.03223763,225.15,225.11,0.03161871]
[1737973256188,4.444,225.12,225.11,0.03161871]
[1737973256385,0.03223763,225.15,225.11,0.03161871]
[1737973256690,4.444,225.12,225.11,0.03161871]
[1737973257587,4.4439,225.13,225.11,0.03161871]
[1737973258595,4.444,225.12,225.11,0.03161871]
[1737973259297,0.03223763,225.15,225.11,0.03161871]
[1737973263096,0.03223763,225.15,225.13,4.4436]
[1737973263295,0.03223763,225.15,225.11,0.03161871]
[1737973264506,4.444,225.12,225.11,0.03161871]
[1737973266300,4.444,225.12,225.11,1.871e-05]
[1737973266504,4.4458,225.04,224.97,1.3828]
[1737973266700,23.05226387,225.13,224.97,1.3828]
[1737973266902,23.05226387,225.09,224.89,1.4135]
[1737973267108,23.05226387,225.09,224.9,2.7086]
[1737973267109,36.0,225.08,224.9,2.7086]
[1737973267301,37.3501,225.08,224.9,2.7086]
[1737973267801,4.4465,225.0,224.97,0.02923041]
[1737973268198,0.03231268,225.01,224.97,0.02923041]
[1737973268396,0.03231268,225.01,224.89,1.4135]
[1737973268397,23.08457655,225.01,224.8,23.05226387]
[1737973268598,23.08457655,225.01,224.81,2.6991]
[1737973268799,2.7373,225.0,224.81,2.6991]
[1737973269005,23.05226387,224.97,224.81,2.6991]
[1737973269401,4.4484,224.9,224.81,2.6991]
[1737973269599,23.05226387,224.93,224.87,0.02814972]
[1737973269803,23.05226387,224.89,224.73,1.4328]
[1737973270004,4.4497,224.84,224.75,4.4513]
[1737973271006,0.03407836,224.82,224.75,4.4513]
[1737973271310,0.03407836,224.82,224.76,4.4511]
[1737973273508,0.03407836,224.82,224.72,4.4518]
[1737973273708,0.03407836,224.82,224.7,2.6983]
[1737973274198,4.4509,224.78,224.7,1.3733]
[1737973274405,0.03407836,224.82,224.7,1.3733]
[1737973274605,23.05226387,224.81,224.67,1.3476]
[1737973274805,0.03232721,224.78,224.67,1.3476]
[1737973275010,4.48322721,224.78,224.7,4.4523]
[1737973275308,0.03232721,224.78,224.67,1.3476]
[1737973275504,0.03232721,224.78,224.62,1.4404]
[1737973275505,23.05226387,224.77,224.62,1.4404]
[1737973275706,4.4521,224.72,224.63,4.4537]
[1737973276108,0.03173566,224.7,224.62,1.4404]
[1737973276412,0.03173566,224.7,224.64,4.4535]
[1737973276709,0.03173566,224.7,224.62,1.4404]
[1737973277106,2.7184,224.84,224.64,23.05226387]
[1737973277302,23.05226387,224.88,224.68,23.05226387]
[1737973277505,2.7316,224.9,224.68,3.04]
[1737973277710,23.05226387,224.96,224.76,23.05226387]
[1737973277911,37.3762,224.99,224.76,23.05226387]
[1737973277912,4.4476,224.95,224.88,4.4487]
[1737973278112,4.4476,224.95,224.77,2.7577]
[1737973278312,0.03199109,224.94,224.89,0.03005939]
[1737973278613,23.05226387,224.96,224.77,2.7577]